fUST/lending_fUST_20250518
["ID","MTS","AMOUNT","RATE_DAILY","PERIOD"]
[361392376,1747552248683,-322.181521,0.00013556,2]
[361392377,1747552248693,-322.181517,0.00013556,2]
[361392378,1747552248702,-608.033558,0.00013556,2]
[361392379,1747552248712,-608.033558,0.00013556,2]
[361392380,1747552248721,-608.033558,0.00013556,2]
[361392381,1747552248730,-608.033558,0.00013556,2]
[361392382,1747552248740,-608.033558,0.00013556,2]
[361392383,1747552248750,-608.033558,0.00013556,2]
[361392384,1747552248760,-608.033558,0.00013556,2]
[361392385,1747552248769,-608.033558,0.00013556,2]
[361392386,1747552248779,-608.033558,0.00013556,2]
[361392387,1747552248788,-608.033558,0.00013556,2]
[361392388,1747552248798,-608.033558,0.00013556,2]
[361392389,1747552248807,-608.033558,0.00013556,2]
[361392390,1747552248816,-608.033558,0.00013556,2]
[361392391,1747552248826,-608.033558,0.00013556,2]
[361392392,1747552248835,-608.033558,0.00013556,2]
[361392393,1747552248844,-608.033558,0.00013556,2]
[361392394,1747552248853,-608.033558,0.00013556,2]
[361392395,1747552248862,-608.033558,0.00013556,2]
[361392396,1747552248871,-608.033558,0.00013556,2]
[361392397,1747552248881,-608.03356,0.00013556,2]
[361392398,1747552248890,-151.0,0.00013556,2]
[361392399,1747552248900,-151.0,0.00013556,2]
[361392400,1747552248909,-157.326013,0.00013556,2]
[361392401,1747552248918,-249.131973,0.00013556,2]
[361392402,1747552248928,-249.131973,0.00013556,2]
[361392403,1747552248937,-249.131973,0.00013556,2]
[361392404,1747552248946,-249.131973,0.00013556,2]
[361392405,1747552248955,-580.629275,0.00013556,2]
[361392406,1747552248965,-249.131973,0.00013556,2]
[361392408,1747552248974,-249.131973,0.00013556,2]
[361392409,1747552248984,-580.629275,0.00013556,2]
[361392411,1747552248993,-249.131973,0.00013556,2]
[361392413,1747552249002,-580.629275,0.00013556,2]
[361392414,1747552249011,-249.131973,0.00013556,2]
[361392415,1747552249020,-580.629275,0.00013556,2]
[361392417,1747552249030,-580.629275,0.00013556,2]
[361392419,1747552249039,-249.131973,0.00013556,2]
[361392420,1747552249049,-580.629275,0.00013556,2]
[361392421,1747552249058,-249.131973,0.00013556,2]
[361392422,1747552249067,-580.629275,0.00013556,2]
[361392423,1747552249076,-249.131973,0.00013556,2]
[361392424,1747552249085,-249.131973,0.00013556,2]
[361392425,1747552249094,-249.131973,0.00013556,2]
[361392426,1747552249103,-580.629275,0.00013556,2]
[361392427,1747552249113,-580.629275,0.00013556,2]
[361392428,1747552249122,-249.131973,0.00013556,2]
[361392429,1747552249132,-580.629275,0.00013556,2]
[361392430,1747552249141,-249.131973,0.00013556,2]
[361392431,1747552249150,-580.629275,0.00013556,2]
[361392432,1747552249160,-249.131973,0.00013556,2]
[361392433,1747552249169,-249.131973,0.00013556,2]
[361392434,1747552249183,-580.629275,0.00013556,2]
[361392435,1747552249192,-196.42796373,0.00013556,2]
[361392467,1747553211124,-152.0,4.7e-07,2]
[361392468,1747553216331,-3.13407944,4.7e-07,2]
[361392469,1747553216356,-155.13407944,4.7e-07,2]
[361392470,1747553216381,-88.32821925,0.00012153,2]
[361392471,1747553217922,-217.51099939,0.00012153,2]
[361392472,1747553222383,-172.58301585,0.00012153,2]
[361392473,1747553225606,-226.02228794,0.00012153,2]
[361392474,1747553227754,-193.85438719,0.00012153,2]
[361392475,1747553229729,-168.70109038,0.00012153,2]
[361392476,1747553229753,-22.49880773,0.000124,2]
[361392477,1747553234138,-1044.50119227,0.000124,2]
[361392478,1747553234159,-2571.6189984,0.00012545,2]
[361392506,1747553432341,-444.7975869,0.00012296,2]
[361392508,1747553432351,-444.7975869,0.00012545,2]
[361392510,1747553432361,-500.0,0.00013246,2]
[361392512,1747553432370,-653.00730596,0.00013301,2]
[361392514,1747553432379,-227.05328907,0.00013309,2]
[361392516,1747553432389,-1408.20093793,0.00013312,2]
[361392518,1747553432398,-1200.0,0.00013383,2]
[361392520,1747553432407,-1408.20093789,0.00013384,2]
[361392522,1747553432417,-300.0,0.00013404,2]
[361392524,1747553432426,-300.0,0.00013405,2]
[361392526,1747553432436,-300.0,0.00013405,2]
[361392528,1747553432445,-300.0,0.00013405,2]
[361392531,1747553432454,-500.0,0.00013406,2]
[361392534,1747553432463,-500.0,0.00013406,2]
[361392537,1747553432472,-500.0,0.00013406,2]
[361392540,1747553432481,-500.0,0.00013406,2]
[361392542,1747553432491,-500.0,0.00013406,2]
[361392544,1747553432500,-500.0,0.00013406,2]
[361392546,1747553432509,-500.0,0.00013406,2]
[361392547,1747553432520,-500.0,0.00013406,2]
[361392548,1747553432528,-500.0,0.00013406,2]
[361392549,1747553432537,-500.0,0.00013406,2]
[361392550,1747553432546,-500.0,0.00013406,2]
[361392551,1747553432554,-500.0,0.00013406,2]
[361392552,1747553432563,-455.83324154,0.00013406,2]
[361392553,1747553432575,-44.16675846,0.00013406,2]
[361392554,1747553432583,-500.0,0.00013406,2]
[361392555,1747553432593,-500.0,0.00013406,2]
[361392556,1747553432602,-500.0,0.00013406,2]
[361392557,1747553432612,-500.0,0.00013406,2]
[361392558,1747553432622,-500.0,0.00013406,2]
[361392559,1747553432630,-500.0,0.00013406,2]
[361392560,1747553432640,-451.08746306,0.00013406,2]
[361392561,1747553432649,-500.0,0.00013406,2]
[361392562,1747553432658,-500.0,0.00013406,2]
[361392563,1747553432667,-500.0,0.00013406,2]
[361392564,1747553432677,-500.0,0.00013406,2]
[361392565,1747553432686,-500.0,0.00013406,2]
[361392566,1747553432695,-500.0,0.00013406,2]
[361392567,1747553432704,-500.0,0.00013406,2]
[361392568,1747553432713,-500.0,0.00013406,2]
[361392569,1747553432722,-320.25526428,0.00013406,2]
[361392570,1747553432731,-500.0,0.00013406,2]
[361392571,1747553432740,-500.0,0.00013406,2]
[361392572,1747553432749,-500.0,0.00013406,2]
[361392573,1747553432758,-500.0,0.00013406,2]
[361392574,1747553432772,-500.0,0.00013406,2]
[361392575,1747553432781,-500.0,0.00013406,2]
[361392576,1747553432790,-500.0,0.00013406,2]
[361392577,1747553432798,-500.0,0.00013406,2]
[361392578,1747553432807,-500.0,0.00013406,2]
[361392579,1747553432816,-500.0,0.00013406,2]
[361392580,1747553432824,-500.0,0.00013406,2]
[361392581,1747553432834,-500.0,0.00013406,2]
[361392582,1747553432843,-500.0,0.00013406,2]
[361392583,1747553432854,-550.51024313,0.00013406,2]
[361392584,1747553432865,-500.0,0.00013406,2]
[361392585,1747553432874,-342.53086204,0.00013406,2]
[361392586,1747553432883,-500.0,0.00013406,2]
[361392587,1747553432893,-500.0,0.00013406,2]
[361392588,1747553432903,-500.0,0.00013406,2]
[361392589,1747553432912,-500.0,0.00013406,2]
[361392590,1747553432922,-500.0,0.00013406,2]
[361392591,1747553432933,-500.0,0.00013406,2]
[361392592,1747553432943,-500.0,0.00013406,2]
[361392593,1747553432952,-500.0,0.00013406,2]
[361392594,1747553432961,-500.0,0.00013406,2]
[361392595,1747553432971,-1508.56808154,0.00013406,2]
[361392596,1747553432981,-1508.56808154,0.00013406,2]
[361392597,1747553432990,-1508.56808154,0.00013406,2]
[361392598,1747553432999,-1508.56808154,0.00013406,2]
[361392599,1747553433008,-1508.56808154,0.00013406,2]
[361392600,1747553433019,-1508.56808154,0.00013406,2]
[361392601,1747553433029,-1508.56808154,0.00013406,2]
[361392602,1747553433038,-1508.56808154,0.00013406,2]
[361392603,1747553433048,-1508.56808154,0.00013406,2]
[361392604,1747553433057,-1508.56808154,0.00013406,2]
[361392605,1747553433066,-1508.56808154,0.00013406,2]
[361392606,1747553433076,-1508.56808154,0.00013406,2]
[361392607,1747553433085,-1508.56808154,0.00013406,2]
[361392608,1747553433095,-1508.56808154,0.00013406,2]
[361392609,1747553433104,-1508.56808154,0.00013406,2]
[361392610,1747553433113,-1508.56808154,0.00013406,2]
[361392611,1747553433123,-1508.56808154,0.00013406,2]
[361392612,1747553433132,-1508.56808154,0.00013406,2]
[361392613,1747553433141,-717.15959408,0.00013406,2]
[361392614,1747553433158,-507.67213347,0.00013406,2]
[361392627,1747553440613,-283.73635399,0.00013406,2]
[361392628,1747553440623,-243.9546515,0.00013406,2]
[361392632,1747553440730,-0.00296223,0.00013406,2]
[361395526,1747553545981,-286.59770257,9.973e-05,2]
[361395527,1747553551440,-260.31795641,9.475e-05,2]
[361395528,1747553559111,-181.41345266,8.551e-05,2]
[361395529,1747553562385,-160.0,8.551e-05,2]
[361395530,1747553563814,-158.58654734,8.551e-05,2]
[361395531,1747553563838,-158.43658051,9.001e-05,2]
[361395532,1747553568982,-258.82831425,9.001e-05,2]
[361395533,1747553573417,-82.73510524,9.001e-05,2]
[361395534,1747553573439,-124.40186826,9.475e-05,2]
[361395535,1747553581704,-115.28017533,9.475e-05,2]
[361395536,1747553581728,-126.2246201,9.973e-05,2]
[361395537,1747553585703,-87.17767733,9.973e-05,2]
[361395538,1747553585727,-90.53349857,0.00010472,2]
[361395539,1747553587728,-288.65338343,0.00010472,2]
[361395540,1747553589920,-120.813118,0.00010472,2]
[361395541,1747553589953,-39.56859584,0.00010996,2]
[361395542,1747553592418,-215.38559815,0.00010996,2]
[361395543,1747553593876,-177.90104503,0.00010996,2]
[361395544,1747553595766,-67.14476098,0.00010996,2]
[361395545,1747553595790,-98.57874062,0.00011546,2]
[361395546,1747553597799,-334.43021759,0.00011546,2]
[361395547,1747553599837,-66.99104179,0.00011546,2]
[361395548,1747554093610,-165.52734981,0.00011817,2]
[361395549,1747554093634,-165.52734981,0.00012061,2]
[361395550,1747554093656,-118.87387278,0.00012329,2]
[361395551,1747554096449,-78.44612722,0.00012329,2]
[361395552,1747554096471,-142.63198871,0.00013281,2]
[361395553,1747554273375,-208.91177213,0.00013148,2]
[361395577,1747554632408,-181.0,0.00012272,2]
[361395579,1747554632418,-181.0,0.00012396,2]
[361395581,1747554632427,-266.45,0.0001311,2]
[361395585,1747554632453,-386.55730596,0.0001311,2]
[361395587,1747554632462,-198.67162791,0.00013298,2]
[361395589,1747554632472,-844.92056275,0.00013307,2]
[361395591,1747554632481,-844.92056273,0.0001338,2]
[361395593,1747554632490,-949.0,0.00013397,2]
[361395595,1747554632500,-542.55455565,0.00013398,2]
[361395596,1747554632509,-344.97204818,0.00013398,2]
[361395597,1747554632518,-500.0,0.00013398,2]
[361395598,1747554632527,-500.0,0.00013398,2]
[361395599,1747554632537,-500.0,0.00013398,2]
[361395600,1747554632547,-500.0,0.00013398,2]
[361395601,1747554632557,-198.21524888,0.00013398,2]
[361395602,1747554632566,-500.0,0.00013398,2]
[361395604,1747554632575,-500.0,0.00013398,2]
[361395606,1747554632584,-500.0,0.00013398,2]
[361395609,1747554632597,-500.0,0.00013398,2]
[361395610,1747554632607,-500.0,0.00013398,2]
[361395611,1747554632617,-500.0,0.00013398,2]
[361395612,1747554632626,-500.0,0.00013398,2]
[361395613,1747554632636,-500.0,0.00013398,2]
[361395614,1747554632645,-505.05102431,0.00013398,2]
[361395615,1747554632655,-500.0,0.00013398,2]
[361395616,1747554632664,-500.0,0.00013398,2]
[361395617,1747554632674,-500.0,0.00013398,2]
[361395618,1747554632684,-500.0,0.00013398,2]
[361395619,1747554632694,-500.0,0.00013398,2]
[361395620,1747554632703,-500.0,0.00013398,2]
[361395621,1747554632712,-500.0,0.00013398,2]
[361395622,1747554632721,-500.0,0.00013398,2]
[361395623,1747554632730,-500.0,0.00013398,2]
[361395624,1747554632741,-500.0,0.00013398,2]
[361395625,1747554632751,-333.03046081,0.00013398,2]
[361395626,1747554632761,-407.17829763,0.00013398,2]
[361395627,1747554632790,-92.82170237,0.00013398,2]
[361395628,1747554632800,-500.0,0.00013398,2]
[361395629,1747554632809,-500.0,0.00013398,2]
[361395630,1747554632819,-126.92143278,0.00013398,2]
[361395633,1747554638373,-373.07856722,0.00013398,2]
[361395634,1747554638383,-500.0,0.00013398,2]
[361395635,1747554638392,-500.0,0.00013398,2]
[361395637,1747554638402,-500.0,0.00013398,2]
[361395640,1747554638411,-500.0,0.00013398,2]
[361395642,1747554638421,-500.0,0.00013398,2]
[361395643,1747554638430,-500.0,0.00013398,2]
[361395645,1747554638440,-500.0,0.00013398,2]
[361395647,1747554638449,-500.0,0.00013398,2]
[361395649,1747554638459,-500.0,0.00013398,2]
[361395651,1747554638468,-339.1956245,0.00013398,2]
[361395654,1747554638484,-160.8043755,0.00013398,2]
[361395656,1747554638495,-500.0,0.00013398,2]
[361395658,1747554638504,-500.0,0.00013398,2]
[361395660,1747554638514,-500.0,0.00013398,2]
[361395662,1747554638523,-500.0,0.00013398,2]
[361395664,1747554638532,-500.0,0.00013398,2]
[361395666,1747554638542,-690.002801,0.00013398,2]
[361395669,1747554638555,-372.94683985,0.00013398,2]
[361395670,1747554638565,-1062.94964085,0.00013398,2]
[361395673,1747554638575,-1062.94964085,0.00013398,2]
[361395675,1747554638586,-1062.94964085,0.00013398,2]
[361395677,1747554638595,-1062.94964085,0.00013398,2]
[361395679,1747554638604,-1062.94964085,0.00013398,2]
[361395681,1747554638614,-1062.94964085,0.00013398,2]
[361395683,1747554638623,-1062.94964085,0.00013398,2]
[361395685,1747554638633,-1062.94964085,0.00013398,2]
[361395687,1747554638642,-1062.94964085,0.00013398,2]
[361395689,1747554638652,-1062.94964085,0.00013398,2]
[361395691,1747554638661,-1062.94964085,0.00013398,2]
[361395693,1747554638670,-1062.94964085,0.00013398,2]
[361395695,1747554638680,-1062.94964085,0.00013398,2]
[361395697,1747554638689,-1062.94964085,0.00013398,2]
[361395699,1747554638698,-1062.94964085,0.00013398,2]
[361395701,1747554638707,-1062.94964085,0.00013398,2]
[361395703,1747554638716,-1062.94964085,0.00013398,2]
[361395705,1747554638725,-1062.94964085,0.00013398,2]
[361395707,1747554638735,-1062.94964085,0.00013398,2]
[361395709,1747554638744,-783.53088674,0.00013398,2]
[361395791,1747554641043,-98.73453901,0.00013398,2]
[361398238,1747555224431,-22822.0,0.00012,2]
[361398246,1747555585364,-202.71509368,0.00011761,2]
[361398247,1747555588163,-283.48525012,0.00011761,2]
[361398248,1747555590962,-211.33230852,0.00011761,2]
[361398249,1747555592609,-57.46734768,0.00011761,2]
[361398253,1747555672537,-300.0,0.00011849,2]
[361398254,1747555672561,-16287.0,0.0001185,2]
[361398256,1747555739837,-7493.0,0.0001185,2]
[361398260,1747555791246,-164.83578447,0.00011731,2]
[361398261,1747555793912,-303.43348442,0.00011731,2]
[361398262,1747555799123,-164.67862398,0.00011731,2]
[361398263,1747555804039,-203.15041354,0.00011731,2]
[361398264,1747555805572,-200.05319341,0.00011731,2]
[361398265,1747555807134,-83.84850018,0.00011731,2]
[361398293,1747555832738,-1120.0,0.00011731,2]
[361398294,1747555832748,-1120.0,0.0001185,2]
[361398295,1747555832759,-755.0,0.00012,2]
[361398296,1747555832769,-250.0,0.00012148,2]
[361398297,1747555832779,-300.0,0.00012327,2]
[361398298,1747555832788,-300.0,0.00012328,2]
[361398299,1747555832798,-300.0,0.00012328,2]
[361398300,1747555832807,-300.0,0.00012328,2]
[361398301,1747555832817,-1200.0,0.00012328,2]
[361398302,1747555832826,-326.89,0.00012329,2]
[361398303,1747555832835,-398.96,0.00012329,2]
[361398304,1747555832845,-332.46,0.00012329,2]
[361398305,1747555832854,-277.05,0.00012329,2]
[361398306,1747555832866,-230.88,0.00012329,2]
[361398307,1747555832875,-192.4,0.00012329,2]
[361398308,1747555832885,-160.33,0.00012329,2]
[361398309,1747555832894,-801.68,0.00012329,2]
[361398310,1747555832904,-2767.3049082,0.00012365,2]
[361398311,1747555832913,-207.4,0.00012855,2]
[361398312,1747555832922,-500.0,0.0001305,2]
[361398313,1747555832932,-437.36652355,0.0001305,2]
[361398314,1747555832942,-653.00730596,0.00013123,2]
[361398315,1747555832951,-1070.23271281,0.00013239,2]
[361398316,1747555832961,-202.21933559,0.00013239,2]
[361398317,1747555832971,-500.0,0.0001325,2]
[361398318,1747555832980,-644.80592329,0.000133,2]
[361398319,1747555832990,-1070.2327128,0.00013329,2]
[361398320,1747555832999,-500.0,0.00013339,2]
[361398321,1747555833009,-500.0,0.00013339,2]
[361398322,1747555833018,-500.0,0.00013339,2]
[361398323,1747555833028,-500.0,0.00013339,2]
[361398324,1747555833038,-500.0,0.00013339,2]
[361398325,1747555833048,-500.0,0.00013339,2]
[361398326,1747555833058,-506.39409455,0.00013339,2]
[361398327,1747555833068,-500.0,0.00013339,2]
[361398328,1747555833077,-500.0,0.00013339,2]
[361398329,1747555833087,-489.74597494,0.00013339,2]
[361398330,1747555833096,-500.0,0.00013339,2]
[361398331,1747555833106,-500.0,0.00013339,2]
[361398332,1747555833117,-264.51277183,0.00013339,2]
[361398333,1747555833127,-500.0,0.00013339,2]
[361398334,1747555833136,-500.0,0.00013339,2]
[361398335,1747555833146,-500.0,0.00013339,2]
[361398336,1747555833156,-500.0,0.00013339,2]
[361398337,1747555833165,-500.0,0.00013339,2]
[361398338,1747555833174,-500.0,0.00013339,2]
[361398339,1747555833184,-500.0,0.00013339,2]
[361398340,1747555833194,-500.0,0.00013339,2]
[361398341,1747555833203,-500.0,0.00013339,2]
[361398342,1747555833212,-500.0,0.00013339,2]
[361398343,1747555833222,-500.0,0.00013339,2]
[361398344,1747555833231,-500.0,0.00013339,2]
[361398345,1747555833241,-200.0,0.00013339,2]
[361398346,1747555833250,-500.0,0.00013339,2]
[361398347,1747555833260,-500.0,0.00013339,2]
[361398348,1747555833270,-500.0,0.00013339,2]
[361398349,1747555833279,-500.0,0.00013339,2]
[361398351,1747555833289,-500.0,0.00013339,2]
[361398352,1747555833298,-580.90657413,0.00013339,2]
[361398372,1747555833466,-500.0,0.00013339,2]
[361398374,1747555833477,-500.0,0.00013339,2]
[361398376,1747555833487,-500.0,0.00013339,2]
[361398378,1747555833497,-500.0,0.00013339,2]
[361398380,1747555833507,-500.0,0.00013339,2]
[361398382,1747555833516,-500.0,0.00013339,2]
[361398384,1747555833526,-500.0,0.00013339,2]
[361398386,1747555833537,-500.0,0.00013339,2]
[361398388,1747555833550,-500.0,0.00013339,2]
[361398390,1747555833560,-500.0,0.00013339,2]
[361398392,1747555833570,-500.0,0.00013339,2]
[361398394,1747555833580,-500.0,0.00013339,2]
[361398396,1747555833591,-500.0,0.00013339,2]
[361398398,1747555833603,-500.0,0.00013339,2]
[361398399,1747555833619,-500.0,0.00013339,2]
[361398401,1747555833631,-500.0,0.00013339,2]
[361398403,1747555833642,-500.0,0.00013339,2]
[361398405,1747555833654,-500.0,0.00013339,2]
[361398407,1747555833665,-500.0,0.00013339,2]
[361398409,1747555833676,-500.0,0.00013339,2]
[361398411,1747555833687,-500.0,0.00013339,2]
[361398412,1747555833697,-500.0,0.00013339,2]
[361398414,1747555833706,-500.0,0.00013339,2]
[361398416,1747555833716,-500.0,0.00013339,2]
[361398418,1747555833725,-500.0,0.00013339,2]
[361398420,1747555833735,-500.0,0.00013339,2]
[361398422,1747555833744,-500.0,0.00013339,2]
[361398424,1747555833754,-500.0,0.00013339,2]
[361398426,1747555833764,-500.0,0.00013339,2]
[361398428,1747555833774,-500.0,0.00013339,2]
[361398430,1747555833784,-500.0,0.00013339,2]
[361398432,1747555833793,-500.0,0.00013339,2]
[361398434,1747555833804,-500.0,0.00013339,2]
[361398435,1747555833814,-500.0,0.00013339,2]
[361398438,1747555833825,-500.0,0.00013339,2]
[361398439,1747555833836,-500.0,0.00013339,2]
[361398441,1747555833846,-500.0,0.00013339,2]
[361398443,1747555833855,-500.0,0.00013339,2]
[361398444,1747555833867,-500.0,0.00013339,2]
[361398445,1747555833877,-500.0,0.00013339,2]
[361398446,1747555833886,-500.0,0.00013339,2]
[361398447,1747555833896,-168.27331934,0.00013339,2]
[361398448,1747555833906,-500.0,0.00013339,2]
[361398449,1747555833915,-500.0,0.00013339,2]
[361398450,1747555833925,-500.0,0.00013339,2]
[361398451,1747555833935,-500.0,0.00013339,2]
[361398452,1747555833945,-500.0,0.00013339,2]
[361398453,1747555833954,-500.0,0.00013339,2]
[361398455,1747555833964,-500.0,0.00013339,2]
[361398457,1747555833974,-500.0,0.00013339,2]
[361398459,1747555833984,-500.0,0.00013339,2]
[361398461,1747555833994,-500.0,0.00013339,2]
[361398463,1747555834003,-500.0,0.00013339,2]
[361398465,1747555834012,-500.0,0.00013339,2]
[361398467,1747555834022,-500.0,0.00013339,2]
[361398468,1747555834032,-500.0,0.00013339,2]
[361398469,1747555834041,-500.0,0.00013339,2]
[361398470,1747555834050,-500.0,0.00013339,2]
[361398472,1747555834060,-500.0,0.00013339,2]
[361398474,1747555834070,-500.0,0.00013339,2]
[361398476,1747555834079,-500.0,0.00013339,2]
[361398478,1747555834088,-500.0,0.00013339,2]
[361398480,1747555834098,-500.0,0.00013339,2]
[361398482,1747555834107,-500.0,0.00013339,2]
[361398484,1747555834119,-500.0,0.00013339,2]
[361398486,1747555834129,-500.0,0.00013339,2]
[361398488,1747555834139,-500.0,0.00013339,2]
[361398490,1747555834149,-173.94675091,0.00013339,2]
[361398492,1747555834159,-500.0,0.00013339,2]
[361398494,1747555834169,-500.0,0.00013339,2]
[361398496,1747555834179,-500.0,0.00013339,2]
[361398498,1747555834189,-500.0,0.00013339,2]
[361398500,1747555834200,-500.0,0.00013339,2]
[361398502,1747555834209,-500.0,0.00013339,2]
[361398504,1747555834218,-499.99999999,0.00013339,2]
[361398506,1747555834228,-500.0,0.00013339,2]
[361398508,1747555834238,-500.0,0.00013339,2]
[361398510,1747555834247,-500.0,0.00013339,2]
[361398512,1747555834257,-500.0,0.00013339,2]
[361398514,1747555834267,-500.0,0.00013339,2]
[361398516,1747555834276,-500.0,0.00013339,2]
[361398518,1747555834286,-500.0,0.00013339,2]
[361398520,1747555834295,-500.0,0.00013339,2]
[361398522,1747555834305,-500.0,0.00013339,2]
[361398524,1747555834314,-450.43680505,0.00013339,2]
[361398526,1747555834323,-500.0,0.00013339,2]
[361398528,1747555834332,-500.0,0.00013339,2]
[361398530,1747555834342,-500.0,0.00013339,2]
[361398532,1747555834352,-500.0,0.00013339,2]
[361398534,1747555834362,-500.0,0.00013339,2]
[361398536,1747555834375,-500.0,0.00013339,2]
[361398538,1747555834384,-500.0,0.00013339,2]
[361398540,1747555834393,-500.0,0.00013339,2]
[361398542,1747555834403,-500.0,0.00013339,2]
[361398544,1747555834412,-500.0,0.00013339,2]
[361398546,1747555834421,-500.0,0.00013339,2]
[361398548,1747555834430,-500.0,0.00013339,2]
[361398550,1747555834440,-500.0,0.00013339,2]
[361398552,1747555834449,-500.0,0.00013339,2]
[361398554,1747555834458,-500.0,0.00013339,2]
[361398556,1747555834467,-500.0,0.00013339,2]
[361398558,1747555834476,-500.0,0.00013339,2]
[361398560,1747555834486,-605.86392633,0.00013339,2]
[361398562,1747555834495,-500.0,0.00013339,2]
[361398565,1747555834506,-500.0,0.00013339,2]
[361398567,1747555834516,-388.91021874,0.00013339,2]
[361398569,1747555834525,-500.0,0.00013339,2]
[361398571,1747555834535,-500.0,0.00013339,2]
[361398573,1747555834544,-600.0,0.00013339,2]
[361398575,1747555834554,-151.0,0.00013339,2]
[361398577,1747555834563,-151.0,0.00013339,2]
[361398578,1747555834573,-151.0,0.00013339,2]
[361398580,1747555834582,-189.831049,0.00013339,2]
[361398582,1747555834592,-189.831049,0.00013339,2]
[361398585,1747555834602,-189.831049,0.00013339,2]
[361398587,1747555834611,-151.0,0.00013339,2]
[361398589,1747555834622,-151.0,0.00013339,2]
[361398590,1747555834632,-151.0,0.00013339,2]
[361398592,1747555834641,-189.831049,0.00013339,2]
[361398594,1747555834650,-189.831049,0.00013339,2]
[361398596,1747555834660,-189.831049,0.00013339,2]
[361398598,1747555834669,-151.0,0.00013339,2]
[361398600,1747555834679,-151.0,0.00013339,2]
[361398602,1747555834688,-288.995764,0.00013339,2]
[361398604,1747555834698,-188.319051,0.00013339,2]
[361398606,1747555834708,-188.319051,0.00013339,2]
[361398608,1747555834718,-188.319051,0.00013339,2]
[361398610,1747555834727,-188.319051,0.00013339,2]
[361398612,1747555834737,-151.0,0.00013339,2]
[361398614,1747555834747,-151.0,0.00013339,2]
[361398616,1747555834757,-200.174388,0.00013339,2]
[361398618,1747555834767,-203.01751093,0.0001334,2]
[361398620,1747555834776,-166.0,0.0001334,2]
[361398623,1747555834786,-715.0,0.0001334,2]
[361398625,1747555834806,-715.0,0.0001334,2]
[361398627,1747555834816,-715.0,0.0001334,2]
[361398629,1747555834826,-166.0,0.0001334,2]
[361398631,1747555834836,-715.0,0.0001334,2]
[361398634,1747555834847,-166.0,0.0001334,2]
[361398636,1747555834856,-715.0,0.0001334,2]
[361398638,1747555834868,-166.0,0.0001334,2]
[361398640,1747555834878,-715.0,0.0001334,2]
[361398642,1747555834887,-166.0,0.0001334,2]
[361398644,1747555834897,-715.0,0.0001334,2]
[361398646,1747555834908,-715.0,0.0001334,2]
[361398648,1747555834917,-715.0,0.0001334,2]
[361398650,1747555834927,-715.0,0.0001334,2]
[361398652,1747555834937,-163.16493755,0.0001334,2]
[361398654,1747555834947,-200.09235776,0.0001334,2]
[361398656,1747555834957,-715.0,0.0001334,2]
[361398658,1747555834967,-160.0,0.0001334,2]
[361398660,1747555834977,-715.0,0.0001334,2]
[361398662,1747555834987,-715.0,0.0001334,2]
[361398664,1747555834996,-160.0,0.0001334,2]
[361398666,1747555835006,-715.0,0.0001334,2]
[361398668,1747555835016,-160.0,0.0001334,2]
[361398671,1747555835026,-715.0,0.0001334,2]
[361398672,1747555835036,-160.0,0.0001334,2]
[361398675,1747555835046,-715.0,0.0001334,2]
[361398677,1747555835055,-160.0,0.0001334,2]
[361398679,1747555835064,-715.0,0.0001334,2]
[361398681,1747555835072,-160.0,0.0001334,2]